[Event "121st Swiss Championship 2022"]
[Site "Samnaun-Compatsch"]
[Date "2022.07.06"]
[Round "3.5"]
[White "Pavlovic, Milos"]
[Black "Salzgeber, Frank"]
[Result "1/2-1/2"]
[ECO "D35"]
[WhiteElo "2461"]
[BlackElo "2131"]
[Annotator "TA"]
[PlyCount "97"]
[EventDate "2022.06.28"]
[EventType "swiss"]
[EventCountry "SUI"]
[SourceTitle "playchess.com"]
[Source "ChessBase"]
[SourceQuality "1"]
[TimeControl "40/5400+30:1800+30"]

{[%evp 11,97,-2,-8,-11,-11,-11,0,0,0,-30,0,0,0,-15,-28,-33,-24,-38,-20,-18,0,7,26,22,33,39,29,29,25,30,38,40,36,31,59,37,41,15,25,8,14,0,13,0,0,0,0,0,0,-10,0,0,6,17,3,0,18,16,13,0,0,0,0,-197,8,5,32,22,33,10,9,14,15,8,11,12,17,17,43,35,36,20,20,24,32,26,23,4]} 1. d4 {[%emt 0:00:06]} Nf6 {[%emt 0:00:06]} 2. Nf3 {[%emt 0:00:14]} e6 {[%emt 0:00:07]} 3. c4 {[%emt 0:02:17]} d5 {[%emt 0:02:38]} 4. e3 {[%emt 0:01:02]} b6 {[%emt 0:04:42]} 5. Nc3 {[%emt 0:02:14]} Bd6 {[%emt 0:00:11]} 6. cxd5 {[%emt 0:04:29]} exd5 {[%emt 0:00:11]} 7. Bb5+ {[%emt 0:00:05] D35: Queen's Gambit Declined: Exchange Variation.} c6 {[%emt 0:00:33]} 8. Bd3 {[%emt 0:00:05]} O-O {[%emt 0:00:25]} 9. O-O {[%emt 0:00:06] The position is equal.} Re8 {[%emt 0:00:51] Against e4} 10. Qc2 {[%emt 0:05:16]} Ba6 {[%emt 0:05:58] [#]} 11. Bxa6 $146 {[%emt 0:05:27]} ({Predecessor:} 11. Re1 Bxd3 12. Qxd3 Ne4 13. Qc2 Na6 14. Nxe4 dxe4 15. Ne5 Bxe5 16. dxe5 Rxe5 17. Rd1 {0-1 (32) Farrell,J (1927)-Ehlvest,J (2665) Springfield 2004}) 11... Nxa6 {[%emt 0:00:02]} 12. Qa4 {[%emt 0:00:10][%csl LRa6,LRc6]} Qc8 {[%emt 0:04:09]} 13. Bd2 {[%emt 0:00:07]} Qb7 {[%emt 0:12:41]} 14. Rac1 {[%emt 0:02:05]} Rad8 {[%emt 0:02:47]} 15. Rfd1 {[%emt 0:01:09]} c5 {[%emt 0:08:38]} 16. Nb5 {[%emt 0:11:20]} Bb8 {[%emt 0:02:32]} 17. Be1 {[%emt 0:12:27]} Ne4 {[%emt 0:01:12]} 18. dxc5 {[%emt 0:04:05]} Naxc5 {[%emt 0:01:41]} 19. Qa3 {[%emt 0:00:34]} a6 {[%emt 0:04:48]} 20. Nbd4 {[%emt 0:00:13]} Bd6 {[%emt 0:01:27]} 21. b4 {[%emt 0:00:35]} Ne6 {[%emt 0:01:43]} 22. Qb3 {[%emt 0:00:59]} Nxd4 {[%emt 0:04:07]} 23. Rxd4 {[%emt 0:04:27]} Nf6 {[%emt 0:03:41]} 24. b5 {[%emt 0:15:49]} Bc5 {[%emt 0:04:51]} (24... axb5 {seems wilder.} 25. Bb4 Ne4 26. Bxd6 Rxd6 27. Qxb5 Rc8) 25. bxa6 {[%emt 0:06:34]} Qxa6 {[%emt 0:00:09]} 26. Ra4 {[%emt 0:00:07]} Qc8 {[%emt 0:00:43]} 27. h3 {[%emt 0:07:10]} Qd7 {[%emt 0:09:18]} 28. Rd1 {[%emt 0:12:14]} h6 {[%emt 0:00:14]} 29. Bc3 {[%emt 0:01:17]} Ne4 {[%emt 0:02:41]} 30. Bd4 {[%emt 0:01:11]} Qf5 {[%emt 0:05:18]} 31. Ra7 {[%emt 0:00:37]} Qh5 {[%emt 0:06:05]} 32. a4 {[%emt 0:00:48]} Re6 {[%emt 0:06:57]} 33. a5 {[%emt 0:00:05]} bxa5 {[%emt 0:01:37]} 34. Bxc5 {[%emt 0:00:57]} Nxc5 {[%emt 0:00:03]} 35. Qb5 {[%emt 0:00:24]} Rg6 {[%emt 0:00:57] Hoping for ...Qxf3.} 36. Kf1 {[%emt 0:00:02]} Ne4 {[%emt 0:01:48]} 37. Qxa5 $2 {[%emt 0:00:18] [#]} (37. Rd7 $11 Rxd7 38. Qxd7) 37... Rgd6 $2 {[%emt 0:01:24]} ({Black should play} 37... Rdd6 $1 $19 {[%cal Og6g2] ( -> ...Rxg2!)} 38. Qa2 (38. Qc7 $2 Rxg2 39. Kxg2 Rg6+ 40. Kf1 Qxf3 $19) 38... Nc3 39. Ra8+ Kh7) 38. Rc1 {[%emt 0:00:39]} Ng5 {[%emt 0:01:13]} 39. Nd4 {[%emt 0:01:01] Black must now prevent Nf5.} Qg6 {[%emt 0:00:39] Against Nf5} 40. Ra8 {[%emt 0:01:06]} Rxa8 {[%emt 0:00:41]} 41. Qxa8+ {[%emt 0:30:03]} Kh7 {[%emt 0:30:32]} 42. Qc8 {[%emt 0:00:00]} Qd3+ {[%emt 0:00:00]} 43. Kg1 {[%emt 0:00:00]} Rf6 {[%emt 0:00:00]} 44. Qc2 {[%emt 0:00:00]} Qe4 {[%emt 0:00:00]} 45. Qxe4+ {[%emt 0:00:00]} dxe4 {[%emt 0:00:00]} 46. Ne2 {[%emt 0:00:00]} Rf5 {[%emt 0:00:00]} 47. Rc7 {[%emt 0:00:00]} Ne6 {[%emt 0:00:00]} 48. Re7 {[%emt 0:00:00]} Kg6 {[%emt 0:00:00]} 49. Ra7 {[%emt 0:00:00] Weighted Error Value: White=0.14 (very precise) /Black=0.13 (very precise)} 1/2-1/2

[Event "121st Swiss Championship 2022"]
[Site "Samnaun-Compatsch"]
[Date "2022.07.06"]
[Round "3.6"]
[White "Gallagher, Joseph G."]
[Black "Bischofberger, Dario"]
[Result "1-0"]
[ECO "C10"]
[WhiteElo "2447"]
[BlackElo "2180"]
[Annotator "TA"]
[PlyCount "81"]
[EventDate "2022.06.28"]
[EventType "swiss"]
[EventCountry "SUI"]
[SourceTitle "playchess.com"]
[Source "ChessBase"]
[SourceQuality "1"]
[TimeControl "40/5400+30:1800+30"]

{[%evp 14,81,24,19,25,23,16,28,32,29,23,23,24,25,24,0,61,37,22,30,95,86,77,84,200,191,225,230,246,220,229,242,261,229,266,260,305,287,436,312,331,308,370,371,342,311,284,241,241,226,256,275,272,279,329,337,445,441,442,404,514,518,624,616,660,639,1664,1645,29991,29992]} 1. e4 {[%emt 0:00:03]} e6 {[%emt 0:00:14]} 2. d4 {[%emt 0:01:57]} d5 {[%emt 0:00:12]} 3. Nc3 {[%emt 0:00:04]} Nf6 {[%emt 0:00:38]} 4. Bg5 {[%emt 0:00:11]} dxe4 {[%emt 0:00:55]} 5. Nxe4 {[%emt 0:00:09]} Nbd7 {[%emt 0:00:25]} 6. Nf3 {[%emt 0:00:54]} h6 {[%emt 0:01:05]} 7. Nxf6+ {[%emt 0:00:06]} Nxf6 {[%emt 0:00:15]} 8. Be3 {[%emt 0:00:11]} Bd6 {[%emt 0:01:03] C10: French with 3 Nc3: Unusual Black 3rd moves and 3...dxe4.} 9. Bd3 {[%emt 0:00:26]} O-O {[%emt 0:00:29] The main line 9...0-0 scores better than 9...b6.} 10. Qe2 {[%emt 0:00:11]} b6 {[%emt 0:03:45] White has an edge.} 11. O-O-O {[%emt 0:05:50][%cal Og2g4]} Bb7 {[%emt 0:01:48]} 12. Ne5 {[%emt 0:02:34]} c5 {[%emt 0:06:12]} 13. Nc4 {[%emt 0:04:24]} Be7 {[%emt 0:16:50]} (13... Bxg2 $2 14. Rhg1 Bd5 15. Nxd6 Qxd6 16. Bxh6 $18) 14. dxc5 {[%emt 0:05:15][%cal Od3h7] And now Bh7+! would win.} Qc7 {[%emt 0:00:42]} (14... Nd5 $11) 15. cxb6 $14 {[%emt 0:21:42]} axb6 {[%emt 0:00:43]} 16. Bxb6 {[%emt 0:00:15] [#]} Qb8 $146 {[%emt 0:08:53]} (16... Qc6 $11) ({Predecessor:} 16... Qf4+ 17. Kb1 Bxg2 18. Be3 Qf3 19. Rhg1 Ng4 20. Bd4 Ra4 21. b3 Rb8 22. h3 Nf6 23. Qe5 Rab4 24. Ne3 Rd8 25. Bc3 Bxh3 26. Bxb4 Bxb4 27. Rg3 {1-0 (27) Kontulainen,H (2142)-Laitila,J (1967) ICCF email 2019}) 17. Kb1 $16 {[%emt 0:01:44] White leaves nothing to chance now.} Bd5 {[%emt 0:02:53] [#] Hoping for ...Bxc4.} 18. Bd4 $1 {[%emt 0:02:01]} Ra6 {[%emt 0:11:33] [#]} (18... Nd7 $16) 19. b3 $1 $18 {[%emt 0:04:32]} Qb7 {[%emt 0:16:31]} 20. Ne3 {[%emt 0:06:31]} Ra5 {[%emt 0:02:56]} 21. Nxd5 {[%emt 0:07:11]} Rxd5 {[%emt 0:05:18]} 22. Bb2 {[%emt 0:10:16]} Ra8 {[%emt 0:02:30]} 23. g3 {[%emt 0:04:38]} Rda5 {[%emt 0:02:59]} 24. a4 {[%emt 0:07:14]} Rd5 {[%emt 0:05:09]} 25. Rhe1 {[%emt 0:01:24]} Bb4 {[%emt 0:01:54]} (25... Rc5 {was worth a try.} 26. f4 Kf8) 26. Rf1 {[%emt 0:01:35] Black must now prevent Bxf6.} Rad8 {[%emt 0:04:04]} 27. Bc4 {[%emt 0:03:59]} R5d7 {[%emt 0:02:37]} 28. Rxd7 {[%emt 0:01:37]} Qxd7 {[%emt 0:00:14]} 29. Bb5 {[%emt 0:02:58]} Qd6 {[%emt 0:00:31]} 30. Be5 {[%emt 0:00:50]} Qc5 {[%emt 0:00:27]} 31. Qe3 {[%emt 0:03:32]} Qe7 {[%emt 0:01:02]} 32. Bb2 {[%emt 0:00:43]} Nd5 {[%emt 0:00:53]} 33. Qf3 {[%emt 0:00:06]} Rc8 {[%emt 0:00:37]} 34. Bc4 {[%emt 0:00:23]} Nb6 {[%emt 0:00:26]} 35. Qg4 {[%emt 0:00:32][%csl Gb2][%cal Rg4g7]} e5 {[%emt 0:00:34]} 36. Rd1 {[%emt 0:00:56]} h5 {[%emt 0:00:34]} 37. Qf5 {[%emt 0:00:12]} Re8 {[%emt 0:00:31]} 38. Bb5 {[%emt 0:00:17]} g6 {[%emt 0:00:28]} 39. Qe4 {[%emt 0:00:22]} f5 {[%emt 0:00:23]} 40. Qc6 {[%emt 0:00:04]} Rd8 {[%emt 0:00:46]} 41. Qxg6+ {[%emt 0:30:12] Weighted Error Value: White=0.08 (flawless) /Black=0.59} 1-0

[Event "121st Swiss Championship 2022"]
[Site "Samnaun-Compatsch"]
[Date "2022.07.06"]
[Round "3.7"]
[White "Curien, Nicolas"]
[Black "Fecker, Noah"]
[Result "0-1"]
[ECO "D00"]
[WhiteElo "2198"]
[BlackElo "2387"]
[Annotator "TA"]
[PlyCount "80"]
[EventDate "2022.06.28"]
[EventType "swiss"]
[EventCountry "SUI"]
[SourceTitle "playchess.com"]
[Source "ChessBase"]
[SourceQuality "1"]
[TimeControl "40/5400+30:1800+30"]

{[%evp 9,80,0,0,-5,-5,0,0,0,28,23,27,30,11,0,51,22,33,0,0,0,0,0,0,0,0,-52,-50,-60,-58,-46,-13,-47,-55,-55,-12,-75,-75,-81,4,4,4,0,0,-9,0,0,0,-17,-17,-60,-22,-23,-16,-16,-15,-35,-27,-22,-44,-161,-168,-275,-273,-308,-284,-246,-234,-234,-217,-5065,-4132,-1349,-1164]} 1. d4 {[%emt 0:00:03]} d5 {[%emt 0:00:03]} 2. Bf4 {[%emt 0:02:07]} Nf6 {[%emt 0:01:05]} 3. e3 {[%emt 0:00:55]} e6 {[%emt 0:01:55]} 4. Nd2 {[%emt 0:03:56]} c5 {[%emt 0:00:30]} 5. c3 {[%emt 0:00:30]} Bd6 {[%emt 0:00:30]} 6. Bg3 {[%emt 0:00:00] D00: 1 d4 d5: Unusual lines.} Qc7 {[%emt 0:00:05]} 7. Ngf3 {[%emt 0:02:13]} Nbd7 {[%emt 0:00:17]} 8. Bd3 {[%emt 0:07:17] The position is equal.} e5 {[%emt 0:07:46]} 9. dxe5 {[%emt 0:09:45]} Nxe5 {[%emt 0:00:03]} 10. Nxe5 {[%emt 0:06:44]} Bxe5 {[%emt 0:00:02]} 11. Bb5+ {[%emt 0:02:32]} Bd7 {[%emt 0:01:45]} ({Black should try} 11... Kf8 $11) 12. Bxd7+ $14 Nxd7 {[%emt 0:00:02] [#]} 13. Nf3 $146 {[%emt 0:15:55]} ({Predecessor:} 13. Bxe5 Qxe5 14. Qa4 Qe6 15. O-O O-O 16. Nf3 Nf6 17. Rad1 h6 18. Rd2 Rfe8 19. Rfd1 {1-0 (49) Zajic,M (2485)-Martirosyan,H (2616) Skopje 2019}) 13... Bxg3 {[%emt 0:00:46]} 14. hxg3 {[%emt 0:00:06]} Nf6 {[%emt 0:07:24]} 15. Qa4+ {[%emt 0:05:56]} Qd7 {[%emt 0:02:13]} 16. Qf4 {[%emt 0:03:56]} O-O {[%emt 0:05:47]} 17. Rh4 {[%emt 0:04:25]} (17. Nh4 $11) 17... Rfe8 $15 {[%emt 0:06:10] [#] White must now prevent ...Re4.} 18. O-O-O {[%emt 0:10:17]} Re4 {[%emt 0:05:45]} 19. Qg5 {[%emt 0:00:06]} Rxh4 {[%emt 0:07:56]} 20. Qxh4 {[%emt 0:00:23][%cal Oe3e4]} Re8 {[%emt 0:04:01]} 21. Qf4 {[%emt 0:06:32]} b6 {[%emt 0:05:53]} 22. Ne5 {[%emt 0:04:23]} (22. c4 $11 {remains equal.}) 22... Qe6 $17 {[%emt 0:03:57]} 23. Nd3 {[%emt 0:00:15]} d4 {[%emt 0:13:11]} (23... a5 $17) 24. exd4 $11 {[%emt 0:00:21]} cxd4 {[%emt 0:05:52]} 25. Qxd4 {[%emt 0:00:21]} Qxa2 {[%emt 0:00:16]} 26. Ne5 {[%emt 0:02:26]} Qe6 {[%emt 0:04:27]} (26... h5 {feels hotter.} 27. Qc4 Qxc4 28. Nxc4 Ne4) 27. f4 {[%emt 0:00:17]} h5 {[%emt 0:00:19]} 28. Qb4 {[%emt 0:07:59]} Ng4 {[%emt 0:02:28]} 29. Nxg4 {[%emt 0:01:56]} hxg4 {[%emt 0:04:53][%mdl 4096] Endgame KQR-KQR} 30. Qa4 {[%emt 0:01:49]} a5 {[%emt 0:00:51]} 31. f5 {[%emt 0:00:29]} Qe3+ {[%emt 0:00:19]} 32. Kb1 {[%emt 0:00:37]} (32. Kc2 {looks sharper.} Qf2+ 33. Kb3 Qe2 34. Ka2) 32... Qe4+ {[%emt 0:01:14]} 33. Qxe4 {[%emt 0:00:15]} Rxe4 {[%emt 0:00:01] KR-KR} 34. Rd6 {[%emt 0:01:17] [#]} (34. Rd8+ $15 Kh7 35. Rd4) 34... Re3 $1 $19 {[%emt 0:00:46]} 35. Rxb6 {[%emt 0:00:20]} (35. Kc2 {was worth a try.}) 35... Rxg3 {[%emt 0:00:02]} 36. Rb8+ {[%emt 0:00:25]} Kh7 {[%emt 0:00:04]} 37. c4 {[%emt 0:00:29] Strongly threatening c5.} Rxg2 {[%emt 0:00:17] Threatens to win with ...Rf2.} 38. c5 {[%emt 0:01:06] c6 is the strong threat.} g3 {[%emt 0:03:42][%cal Bg4g3,Bg3g2][%mdl 32]} 39. c6 $2 {[%emt 0:00:03]} (39. Rb3 Rg1+ 40. Kc2) 39... Rg1+ {[%emt 0:00:14]} 40. Kc2 {[%emt 0:00:06]} g2 {[%emt 0:00:50] Weighted Error Value: White=0.35/Black=0.13 (very precise)} 0-1

[Event "121st Swiss Championship 2022"]
[Site "Samnaun-Compatsch"]
[Date "2022.07.06"]
[Round "3.8"]
[White "Hakimifard, Ghazal"]
[Black "Grob, Joshua"]
[Result "1-0"]
[ECO "B32"]
[WhiteElo "2296"]
[BlackElo "2040"]
[Annotator "TA"]
[PlyCount "55"]
[EventDate "2022.06.28"]
[EventType "swiss"]
[EventCountry "SUI"]
[SourceTitle "playchess.com"]
[Source "ChessBase"]
[SourceQuality "1"]
[TimeControl "40/5400+30:1800+30"]

{[%evp 11,55,24,39,24,24,26,26,24,31,25,40,27,21,30,23,9,14,0,0,0,0,-4,-5,-20,0,0,34,40,36,34,37,47,61,61,64,54,333,320,367,361,526,530,937,920,1366,932]} 1. e4 {[%emt 0:00:03]} c5 {[%emt 0:00:08]} 2. Nf3 {[%emt 0:00:08][%cal Bg1f3,Bf3d4,Bd4b5][%mdl 32]} Nc6 {[%emt 0:00:07]} 3. d4 {[%emt 0:00:07]} cxd4 {[%emt 0:00:06]} 4. Nxd4 {[%emt 0:00:04]} e5 {[%emt 0:00:07]} 5. Nb5 {[%emt 0:03:14]} d6 {[%emt 0:00:11]} 6. c4 {[%emt 0:04:35]} Be6 {[%emt 0:00:10] now scores much better than the old 6...Be7.} 7. Be2 {[%emt 0:05:27] B32: Sicilian: Löwenthal and Kalashnikov Variations.} g6 {[%emt 0:09:28]} 8. O-O {[%emt 0:02:28]} a6 {[%emt 0:01:10]} 9. N5c3 {[%emt 0:00:22] White has an edge.} Bg7 {[%emt 0:00:09]} 10. Nd5 {[%emt 0:03:47]} Nf6 {[%emt 0:01:53]} 11. Nbc3 {[%emt 0:07:17]} Bxd5 {[%emt 0:02:11]} 12. cxd5 {[%emt 0:03:25]} Nd4 {[%emt 0:01:26]} 13. Be3 {[%emt 0:01:17]} O-O {[%emt 0:04:56] [#]} 14. Bxd4 $146 {[%emt 0:05:36]} ({Predecessor:} 14. Bd3 Qb6 15. Ne2 Nd7 16. Qd2 Nc5 17. Rac1 Nxd3 18. Qxd3 Qb5 19. Qxb5 axb5 20. Nxd4 exd4 {½-½ (58) Heimann,A (2606)-Svane,F (2421) Magdeburg 2021}) 14... exd4 {[%emt 0:00:07]} 15. Qxd4 {[%emt 0:00:27]} Nd7 {[%emt 0:10:25]} 16. Qb4 {[%emt 0:18:16]} Nc5 {[%emt 0:04:50]} 17. Bf3 {[%emt 0:11:36]} Qc7 {[%emt 0:08:07][%mdl 1024] Black has compensation.} 18. Rad1 {[%emt 0:01:55]} a5 {[%emt 0:11:54]} 19. Qb5 {[%emt 0:01:53]} Rfe8 {[%emt 0:01:50]} 20. Rfe1 {[%emt 0:01:13]} a4 {[%emt 0:02:03]} 21. Nb1 {[%emt 0:06:10][%cal Bc3b1,Bb1a3,Ba3c4][%mdl 32]} Kf8 {[%emt 0:09:23]} 22. Na3 {[%emt 0:04:34]} Ra5 {[%emt 0:02:02]} 23. Qe2 {[%emt 0:02:28]} Nxe4 $2 {[%emt 0:06:06][%mdl 8192] This move loses the game for Black.} 24. Bxe4 $18 {[%emt 0:00:38]} f5 {[%emt 0:04:44] [#]} 25. Qf3 {[%emt 0:00:05]} Qf7 {[%emt 0:07:45]} (25... Rc5 $142 26. g4 Qf7 27. gxf5 gxf5) 26. Nc4 {[%emt 0:00:55][%csl LRa5,LRd6] White is clearly winning.} Rxe4 {[%emt 0:03:06]} 27. Rxe4 {[%emt 0:02:12]} Rxd5 {[%emt 0:01:36]} 28. Rxd5 {[%emt 0:00:23] Weighted Error Value: White=0.04 (flawless) /Black=0.48} 1-0

[Event "121st Swiss Championship 2022"]
[Site "Samnaun-Compatsch"]
[Date "2022.07.06"]
[Round "3.9"]
[White "Loeffler, Markus"]
[Black "Udipi, Kala Kishan"]
[Result "0-1"]
[ECO "B31"]
[WhiteElo "2278"]
[BlackElo "2057"]
[Annotator "TA"]
[PlyCount "70"]
[EventDate "2022.06.28"]
[EventType "swiss"]
[EventCountry "SUI"]
[SourceTitle "playchess.com"]
[Source "ChessBase"]
[SourceQuality "1"]
[TimeControl "40/5400+30:1800+30"]

{[%evp 16,70,34,7,23,18,59,62,79,77,101,65,59,57,57,80,65,50,67,67,145,133,123,125,131,121,157,74,76,76,75,59,82,40,40,19,34,10,5,-41,-45,-194,-197,-248,-254,-239,-235,-258,-250,-290,-265,-471,-472,-585,-578,-561,-578]} 1. e4 {[%emt 0:06:31]} c5 {[%emt 0:00:12]} 2. Nf3 {[%emt 0:00:06]} Nc6 {[%emt 0:00:12]} 3. Bb5 {[%emt 0:00:04]} g6 {[%emt 0:00:38]} 4. Bxc6 {[%emt 0:00:11]} dxc6 {[%emt 0:00:24]} 5. h3 {[%emt 0:00:30]} Bg7 {[%emt 0:00:15]} 6. d3 {[%emt 0:00:15]} Nf6 {[%emt 0:01:05]} 7. O-O {[%emt 0:00:40]} O-O {[%emt 0:00:30]} 8. Nc3 {[%emt 0:00:30]} b6 {[%emt 0:00:58]} 9. Be3 {[%emt 0:05:15]} Ba6 {[%emt 0:00:30][%cal Oe7e5] B31: Sicilian: 2...Nc6 3 Bb5 g6.} 10. Qd2 {[%emt 0:00:30]} Qc7 {[%emt 0:00:30]} 11. Bf4 {[%emt 0:00:30]} Qb7 {[%emt 0:00:30] White is slightly better.} 12. Bh6 {[%emt 0:00:30]} Rad8 {[%emt 0:00:30]} 13. Bxg7 {[%emt 0:00:30]} Kxg7 {[%emt 0:00:30] [#]} 14. Rfe1 $146 {[%emt 0:00:30]} ({Predecessor:} 14. Qe3 Qc7 15. a4 Nd7 16. e5 Bc8 17. Rfe1 f6 18. a5 Nb8 19. axb6 axb6 20. Ra4 Na6 21. Rh4 Kh8 22. Qh6 Rf7 23. Ne4 g5 24. e6 {1-0 (24) Paksa,R (2192)-Magyar,A (2175) Hungary 2006}) 14... Qc7 {[%emt 0:00:30]} 15. e5 {[%emt 0:00:30]} Nd5 {[%emt 0:00:30]} 16. Ne4 {[%emt 0:00:30]} Qc8 {[%emt 0:00:30]} 17. a4 {[%emt 0:00:30]} Qf5 {[%emt 0:00:30]} (17... c4 $14) 18. a5 $16 {[%emt 0:00:30] [#] Hoping for axb6.} Bc8 {[%emt 0:00:30]} 19. axb6 {[%emt 0:00:30]} axb6 {[%emt 0:00:30]} 20. Ra7 {[%emt 0:00:30]} Bd7 {[%emt 0:28:26]} 21. Ng3 {[%emt 1:12:47]} ({White should play} 21. c4 Nf4 22. Ng3 Nxh3+ 23. Kf1) 21... Qf4 {[%emt 0:06:45]} 22. Qxf4 {[%emt 0:00:02]} Nxf4 {[%emt 0:00:20]} 23. Rea1 {[%emt 0:00:19]} Nd5 {[%emt 0:00:41][%cal Bf4d5,Bd5b4,Bb4c2,Bc2b4,Bb4d3][%mdl 32]} 24. Ne4 {[%emt 0:04:14]} Rfe8 {[%emt 0:00:30]} 25. Kf1 {[%emt 0:00:30]} Bf5 {[%emt 0:00:30]} 26. Ng3 {[%emt 0:04:23]} Be6 {[%emt 0:07:54]} 27. Nd2 {[%emt 0:00:50]} (27. Ne1 $11) 27... Nb4 $15 {[%emt 0:00:38]} 28. Rb7 {[%emt 0:01:18] This move loses the game for White.} (28. Rc1 $15) 28... Nxc2 $19 {[%emt 0:00:40]} 29. Rc1 {[%emt 0:00:10]} (29. Raa7 $142) 29... Nb4 {[%emt 0:01:04]} 30. Rxb6 {[%emt 0:00:02]} Nxd3 {[%emt 0:00:47]} 31. Rc3 {[%emt 0:00:32]} Nxe5 {[%emt 0:01:53]} 32. Ke2 {[%emt 0:00:36]} Bd5 {[%emt 0:07:44]} 33. Rxc5 $2 {[%emt 0:00:08] [#]} (33. f3) 33... Nd7 {[%emt 0:00:57] Black is clearly winning.} 34. Rcxc6 {[%emt 0:00:16]} Nxb6 {[%emt 0:00:21]} 35. Rxb6 {[%emt 0:00:05]} Bxg2 {[%emt 0:01:01] Weighted Error Value: White=0.36/Black=0.15 (very precise)} 0-1

[Event "121st Swiss Championship 2022"]
[Site "Samnaun-Compatsch"]
[Date "2022.07.06"]
[Round "3.10"]
[White "Pogan, Nikolas"]
[Black "Kuenzli, Simon"]
[Result "1-0"]
[ECO "D11"]
[WhiteElo "2226"]
[BlackElo "1949"]
[Annotator "TA"]
[PlyCount "67"]
[EventDate "2022.06.28"]
[EventType "swiss"]
[EventCountry "SUI"]
[SourceTitle "playchess.com"]
[Source "ChessBase"]
[SourceQuality "1"]
[TimeControl "40/5400+30:1800+30"]

{[%evp 9,67,0,0,0,10,10,46,46,46,50,55,75,97,33,37,26,39,33,47,15,14,-4,158,146,245,125,231,143,316,306,297,256,252,213,197,121,118,110,102,111,105,109,107,109,181,180,219,212,289,293,374,389,380,368,393,386,394,382,495,452]} 1. d4 {[%emt 0:00:04]} d5 {[%emt 0:00:06]} 2. c4 {[%emt 0:00:04]} c6 {[%emt 0:00:08]} 3. Nf3 {[%emt 0:00:06]} Nf6 {[%emt 0:00:06]} 4. g3 {[%emt 0:00:14]} Bf5 {[%emt 0:00:59]} 5. Qb3 {[%emt 0:01:43]} Qb6 {[%emt 0:02:52]} 6. Nc3 {[%emt 0:00:11][%cal Rc4d5] D11: Slav Defence: 3 Nf3 sidelines and 3...Nf6 4 e3 Bg4.} e6 {[%emt 0:00:32]} 7. c5 {[%emt 0:02:03]} Qc7 {[%emt 0:05:10]} 8. Bf4 {[%emt 0:05:42] White is slightly better.} Qc8 {[%emt 0:00:17]} 9. Nh4 {[%emt 0:01:50]} Be7 {[%emt 0:01:51]} 10. Nxf5 {[%emt 0:02:49]} exf5 {[%emt 0:00:10]} 11. Bg2 {[%emt 0:01:36] White is more active.} (11. Bh3 $16) 11... O-O {[%emt 0:01:01]} 12. O-O {[%emt 0:00:03]} Re8 {[%emt 0:03:50] [#]} 13. f3 $146 {[%emt 0:14:40][%cal Bf2f3,Bf3e4,Be4e5][%mdl 32]} ({Predecessor:} 13. Qc2 Bf8 14. b4 Qe6 15. a4 Ne4 16. Rfe1 Nd7 17. b5 Ndf6 18. f3 Nxc3 19. Qxc3 {1-0 (75) Iurk,J-Carvalho,I Curitiba 2009}) 13... Nbd7 {[%emt 0:06:25]} 14. Bh3 {[%emt 0:16:13]} g6 {[%emt 0:19:26]} 15. e4 {[%emt 0:03:22]} dxe4 $2 {[%emt 0:08:21]} (15... fxe4 $11 16. fxe4 Nxc5 17. Bxc8 Nxb3 18. Bxb7 (18. axb3 Rexc8 19. Bg5 Kg7 $17) 18... Nxa1 19. Rxa1 dxe4 $1) 16. fxe4 $16 {[%emt 0:00:30]} Nh5 {[%emt 0:23:00] [#]} (16... Nxe4 $2 17. Nxe4 Nf6 18. Nxf6+ Bxf6 19. Rad1 $18) (16... Nxc5 $16 17. dxc5 Bxc5+ 18. Kh1 Nxe4) 17. Be3 {[%emt 0:07:39]} ({Less strong is} 17. exf5 Nxf4 18. Rxf4 g5 $16) (17. Bh6 $1 $18) 17... Ng7 {[%emt 0:06:36]} (17... f4 $16 {might work better.}) 18. g4 {[%emt 0:02:38][%cal Rg4f5]} Nf6 $2 {[%emt 0:02:01]} (18... f4 $16) 19. gxf5 $18 {[%emt 0:04:30]} gxf5 {[%emt 0:02:21]} 20. e5 {[%emt 0:06:43]} ({But not} 20. Bxf5 Nxf5 21. Rxf5 Nxe4 22. Qxf7+ Kh8) 20... Nfh5 {[%emt 0:02:44]} 21. Rf3 {[%emt 0:00:04]} Qe6 {[%emt 0:01:06]} 22. Qc2 {[%emt 0:01:08]} ({Better is} 22. Kh1 $18) 22... Qg6+ $16 {[%emt 0:01:39]} 23. Kh1 {[%emt 0:03:08]} f4 {[%emt 0:00:20]} 24. Qxg6 {[%emt 0:02:44]} hxg6 {[%emt 0:00:08]} 25. Bxf4 {[%emt 0:00:34]} Nxf4 {[%emt 0:00:09]} 26. Rxf4 {[%emt 0:00:02]} Bg5 {[%emt 0:00:47]} (26... Nh5 $16 27. Rf3 Rad8) 27. Rf3 {[%emt 0:01:46]} Rad8 {[%emt 0:00:30]} 28. Ne4 {[%emt 0:00:17]} Bh4 {[%emt 0:04:35]} 29. Nd6 {[%emt 0:01:33]} Re7 {[%emt 0:00:07]} 30. Raf1 {[%emt 0:04:19]} Rf8 {[%emt 0:00:32]} 31. b4 {[%emt 0:09:40][%cal Bb2b4,Bb4b5][%mdl 32]} Bg5 {[%emt 0:01:26]} 32. a4 {[%emt 0:00:19]} Bd2 {[%emt 0:00:20]} 33. b5 {[%emt 0:00:50]} Nh5 {[%emt 0:01:23]} 34. Bg4 {[%emt 0:00:27] Weighted Error Value: White=0.22 (precise) /Black=0.47} 1-0